[Event "Super United Croatia GCT Blitz 2022"]
[Site "Zagreb"]
[Date "2022.07.23"]
[Round "4"]
[White "Vachier-Lagrave, Maxime"]
[Black "Firouzja, Alireza"]
[Result "1/2-1/2"]
[ECO "B13"]
[WhiteElo "2760"]
[BlackElo "2793"]
[Annotator "TA"]
[PlyCount "83"]
[EventDate "2022.07.20"]
[EventType "tourn"]
[EventCountry "CRO"]
[SourceTitle "playchess.com"]
[Source "ChessBase"]
[SourceQuality "1"]
[TimeControl "300+2"]

{[%evp 11,83,18,15,11,28,18,17,26,27,22,25,15,30,23,43,43,71,33,41,11,29,18,18,10,13,10,17,-42,-14,-16,-16,-14,-20,-30,-12,-20,0,-24,-4,-25,-15,-27,0,0,0,-8,-11,-18,-10,-13,-8,-23,-40,-15,0,0,0,0,0,0,0,-14,0,0,0,0,0,0,0,0,0,0,0,0]} 1. e4 {[%emt 0:00:01]} c6 {[%emt 0:00:00]} 2. d4 {[%emt 0:00:04]} d5 {[%emt 0:00:01]} 3. exd5 {[%emt 0:00:02]} cxd5 {[%emt 0:00:01]} 4. Bd3 {[%emt 0:00:01]} Nf6 {[%emt 0:00:02]} 5. c3 {[%emt 0:00:04]} Bg4 {[%emt 0:00:01]} 6. Qb3 {[%emt 0:00:04]} Qc7 {[%emt 0:00:01]} 7. Ne2 {[%emt 0:00:08] B13: Caro-Kann: Exchange Variation and Panov-Botvinnik Attack.} Nc6 {[%emt 0:00:11]} 8. Bf4 {[%emt 0:00:03]} Qd7 {[%emt 0:00:41]} 9. Nd2 {[%emt 0:00:07]} e6 {[%emt 0:00:17]} 10. Ng3 {[%emt 0:00:20] [#]} Be7 $146 {[%emt 0:00:12]} ({Predecessor:} 10... Bd6 11. Bxd6 Qxd6 12. h3 Bh5 13. Qxb7 Rb8 14. Qa6 O-O 15. Rb1 e5 16. Nf5 Qd8 17. Qxc6 {1-0 (24) Zierk,S (2499)-Harutjunyan,G (2442) Chess.com INT 2021}) 11. O-O {[%emt 0:00:15]} O-O {[%emt 0:00:05]} 12. Rae1 {[%emt 0:00:18]} Bd6 {[%emt 0:00:12]} 13. Be5 {[%emt 0:00:38]} Nh5 {[%emt 0:00:09]} 14. Qc2 {[%emt 0:00:01] White is more active.} Nxg3 {[%emt 0:00:22]} 15. hxg3 {[%emt 0:00:10] And now Bxd6 would win.} g6 {[%emt 0:00:14]} 16. Bxd6 {[%emt 0:00:37]} Qxd6 {[%emt 0:00:02]} 17. f3 {[%emt 0:00:00]} Bf5 {[%emt 0:00:01]} 18. Bxf5 {[%emt 0:00:01]} exf5 {[%emt 0:00:30]} 19. f4 {[%emt 0:00:02]} ({White should try} 19. g4 $11) 19... Rfe8 {[%emt 0:00:08]} 20. Nf3 {[%emt 0:00:19]} f6 {[%emt 0:00:02]} 21. Qb3 {[%emt 0:00:06]} (21. Kf2 {is more complex.} Kf7 22. Qb3 Qd7 23. Qa4) 21... Qd7 {[%emt 0:00:04]} 22. Qb5 {[%emt 0:00:09]} a6 {[%emt 0:00:18]} 23. Qb6 {[%emt 0:00:04]} Kg7 {[%emt 0:00:07]} 24. Kf2 {[%emt 0:00:11]} Kf7 {[%emt 0:00:47]} 25. Rxe8 {[%emt 0:00:05]} Rxe8 {[%emt 0:00:01]} 26. Re1 {[%emt 0:00:01]} Ra8 {[%emt 0:00:23]} 27. a4 {[%emt 0:00:35]} Ne7 {[%emt 0:00:24]} 28. a5 {[%emt 0:00:16]} Nc8 {[%emt 0:00:16]} 29. Qc5 {[%emt 0:00:01]} Qc6 30. Qxc6 {[%emt 0:00:34]} bxc6 $11 {[%emt 0:00:01][%mdl 4096] Endgame KRN-KRN} 31. b4 {[%emt 0:00:02]} (31. Rh1 $5 {[%cal Rh1h7]} h5 32. Ne1 $11) 31... Nd6 {[%emt 0:00:02] Threatens to win with ...Ne4+.} 32. Nd2 {[%emt 0:00:01]} Ne4+ {[%emt 0:00:15] The position is equal.} 33. Nxe4 {[%emt 0:00:01]} fxe4 {[%emt 0:00:01] KR-KR} 34. g4 {[%emt 0:00:01]} Rh8 {[%emt 0:00:12]} 35. Rh1 {[%emt 0:00:03]} h5 {[%emt 0:00:02]} 36. Ke3 {[%emt 0:00:19]} f5 {[%emt 0:00:03]} 37. g5 {[%emt 0:00:03]} Ke6 {[%emt 0:00:03]} 38. g3 {[%emt 0:00:04]} Rb8 {[%emt 0:00:02]} 39. Rh2 {[%emt 0:00:04]} Kd6 {[%emt 0:00:01]} 40. Rh1 {[%emt 0:00:01]} Ke6 {[%emt 0:00:02]} 41. Rh2 {[%emt 0:00:01]} Kd6 {[%emt 0:00:01]} 42. Rh1 {[%emt 0:00:09] Weighted Error Value: White=0.10 (very precise) /Black=0.07 (flawless)} 1/2-1/2

[Event "Super United Croatia GCT Blitz 2022"]
[Site "Zagreb"]
[Date "2022.07.23"]
[Round "4"]
[White "Dominguez Perez, Leinier"]
[Black "Carlsen, Magnus"]
[Result "1-0"]
[ECO "C88"]
[WhiteElo "2754"]
[BlackElo "2864"]
[Annotator "TA"]
[PlyCount "109"]
[EventDate "2022.07.20"]
[EventType "tourn"]
[EventCountry "CRO"]
[SourceTitle "playchess.com"]
[Source "ChessBase"]
[SourceQuality "1"]
[TimeControl "300+2"]

{[%evp 22,109,15,13,37,17,45,0,0,0,0,0,0,0,0,0,7,9,10,18,14,0,29,24,33,13,70,27,27,6,23,23,24,20,36,36,34,42,45,25,25,9,45,9,81,0,0,0,0,0,19,0,12,12,221,236,241,70,213,210,204,200,270,282,404,318,302,206,121,40,130,79,237,249,249,239,222,151,366,357,352,339,359,370,469,281,29972,29972,6113,6077]} 1. e4 {[%emt 0:00:05]} e5 {[%emt 0:00:23]} 2. Nf3 {[%emt 0:00:02]} Nc6 {[%emt 0:00:01]} 3. Bb5 {[%emt 0:00:01][%cal Bf1b5,Bb5a4,Ba4b3,Bb3a2][%mdl 32]} a6 {[%emt 0:00:02]} 4. Ba4 {[%emt 0:00:01]} Nf6 {[%emt 0:00:01]} 5. O-O {[%emt 0:00:01]} Be7 {[%emt 0:00:02]} 6. Re1 {[%emt 0:00:02]} b5 {[%emt 0:00:01]} 7. Bb3 {[%emt 0:00:01]} O-O {[%emt 0:00:02]} 8. a4 {[%emt 0:00:10]} Bb7 {[%emt 0:00:04]} 9. d3 {[%emt 0:00:08]} d6 {[%emt 0:00:11]} 10. Nbd2 {[%emt 0:00:15][%cal Bb1d2,Bd2f1,Bf1e3][%mdl 32]} Na5 {[%emt 0:00:32] 10...Nd7 deserves study.} 11. Ba2 {[%emt 0:00:02]} c5 {[%emt 0:00:02]} 12. Nf1 {[%emt 0:00:10]} b4 {[%emt 0:00:09] C88: Closed Ruy Lopez: Anti-Marshall Systems.} 13. Ne3 {[%emt 0:00:29]} b3 {[%emt 0:00:10]} 14. cxb3 {[%emt 0:00:36][%cal Ob3b4]} Nc6 {[%emt 0:00:10] The position is equal.} 15. b4 {[%emt 0:00:01]} Nxb4 {[%emt 0:00:03]} 16. Bc4 {[%emt 0:00:01]} Bc8 {[%emt 0:00:07][%cal Bb7c8,Bc8e6,Be6b3][%mdl 32]} 17. Bd2 {[%emt 0:00:28] [#]} Nc6 $146 {[%emt 0:00:01]} ({Predecessor:} 17... Rb8 18. a5 Qc7 19. Bc3 Nc6 20. h3 Qb7 21. Nh4 Nxe4 22. dxe4 Bxh4 23. Qd3 Nd4 {1-0 (30) Viliavin,R (2249)-Ivanovic,Z (2334) ICCF email 2005}) 18. a5 {[%emt 0:00:38]} Be6 {[%emt 0:00:11]} 19. Nd5 {[%emt 0:00:18]} Rb8 {[%emt 0:00:55]} 20. Nxf6+ {[%emt 0:00:26]} Bxf6 {[%emt 0:00:02]} 21. Bxa6 {[%emt 0:00:01]} Qc7 {[%emt 0:00:17]} 22. Bc3 {[%emt 0:00:16]} Bb3 {[%emt 0:01:20]} 23. Qd2 {[%emt 0:00:20]} Nb4 {[%emt 0:00:01]} (23... Nd4 $11) 24. Bxb4 {[%emt 0:00:24]} (24. Bc4 $5 {[%cal Rc4b3]} Nc2 25. Bxb3 Nxa1 26. Bxf7+ Rxf7 27. Rxa1 $14) 24... Rxb4 {[%emt 0:00:01]} 25. Qc3 {[%emt 0:00:03]} Ra8 {[%emt 0:00:07]} 26. Nd2 {[%emt 0:00:04][%cal Oe1c1]} Rxa6 {[%emt 0:00:13]} 27. Nxb3 {[%emt 0:00:02]} Bd8 {[%emt 0:00:05]} 28. Ra3 {[%emt 0:00:06]} Qb7 {[%emt 0:00:03]} 29. g3 {[%emt 0:00:10]} h5 {[%emt 0:00:04]} 30. h4 {[%emt 0:00:08]} Qd7 {[%emt 0:00:01]} 31. Qc2 {[%emt 0:00:11]} Qg4 {[%emt 0:00:17]} 32. Qe2 {[%emt 0:00:06]} (32. Kh2 {seems wilder.} g6 33. Nd2 Rxa5 34. Nc4) 32... Qe6 {[%emt 0:00:04] [#]} (32... Qxe2 $11 33. Rxe2 g6) 33. Qc2 {[%emt 0:00:12]} (33. d4 $1 $16 Ra7 34. d5) 33... g5 {[%emt 0:00:04]} 34. hxg5 {[%emt 0:00:02]} h4 $1 {[%emt 0:00:01]} 35. Kg2 {[%emt 0:00:06]} Bxg5 {[%emt 0:00:03]} 36. Nd2 {[%emt 0:00:04]} Qg4 {[%emt 0:00:04]} 37. Nc4 {[%emt 0:00:02] Black should prevent Qd1.} d5 $2 {[%emt 0:00:19]} (37... hxg3 $11 {and Black has nothing to worry.} 38. Qe2 gxf2+ 39. Qxg4 fxe1=Q 40. Qxg5+ Kh8 41. Qh5+ Kg8 42. Qg4+ Kf8 43. Qc8+ Kg7 44. Qg4+ (44. Qxa6 Qe2+ 45. Kg1 Rb8 $19) 44... Kf8 45. Qc8+ Kg7 46. Qg4+ (46. Qxa6 $2 Qe2+ 47. Kg1 Rb8 $19) 46... Kf6) 38. Nxe5 $18 {[%emt 0:00:01] Chess con chili.} Qe6 {[%emt 0:00:00]} 39. Nf3 {[%emt 0:00:02]} (39. Qxc5 $18 h3+ 40. Kh2 Rxb2 41. Qd4 (41. exd5 Qf5 $11) (41. Qxd5 Rxf2+ 42. Kh1 Qf6 $17)) 39... Bf6 {[%emt 0:00:02]} (39... hxg3 $1 $14 40. fxg3 (40. Nxg5 gxf2 41. Qxf2 Qg4+ 42. Kf1 Qxg5 $11) 40... Qg4) 40. Qxc5 {[%emt 0:00:04]} Rxb2 {[%emt 0:00:01] ...Qg4 is the strong threat.} 41. Qxd5 {[%emt 0:00:01]} (41. exd5 Qg4 42. Re8+ (42. Nxh4 $2 Bd4 $19) 42... Kh7 $11) 41... h3+ {[%emt 0:00:02]} 42. Kg1 {[%emt 0:00:01]} Qg4 {[%emt 0:00:01]} (42... Qxd5 {was necessary.} 43. exd5 Kg7) 43. e5 {[%emt 0:00:00]} Be7 {[%emt 0:00:02]} 44. Rc3 {[%emt 0:00:05] Black must now prevent Rc4.} Rxa5 {[%emt 0:00:01] [#]} 45. Rc4 {[%emt 0:00:01]} (45. Qxa5 Qxf3) (45. Qc6 $1 $16 Rc5 46. Rxc5 Bxc5 47. d4 (47. Qxc5 Qxf3 48. Qc8+ Kg7) 47... Bxd4 48. Nxd4 Qxd4 49. Qf3) 45... Qf5 {[%emt 0:00:02]} (45... Qxg3+ $1 $14 46. fxg3 Rxd5) 46. Qe4 {[%emt 0:00:02]} (46. Qxa5 $2 Qxf3 47. Qa8+ Qxa8 $19) ({Better is} 46. Qc6 {Threatens to win with Qe8+.} h2+ 47. Kh1 Rxf2 48. Rf4) 46... Qxe4 $2 {[%emt 0:00:01]} (46... h2+ $16 47. Kh1 Qxe4 48. Rcxe4 (48. Rexe4 Rxf2 49. Ne1 Ra1 $17) 48... Rxf2) 47. Rcxe4 {[%emt 0:00:01]} ({Less strong is} 47. dxe4 Bc5 48. Nd4 Bxd4 49. Rxd4 Rxe5 $14) ({Not} 47. Rexe4 Ra1+ 48. Kh2 (48. Re1 Rxe1+ 49. Nxe1 Rb1 $11) 48... Rxf2+ 49. Kxh3 Rxf3 50. Rc8+ Kg7 $11) 47... Raa2 {[%emt 0:00:00]} 48. Rf1 {[%emt 0:00:04]} Ra3 {[%emt 0:00:01]} 49. Re3 {[%emt 0:00:02]} Bc5 $2 {[%emt 0:00:01]} (49... Bd8 $16 {was worth a try.} 50. d4 Rxe3 51. fxe3 Re2) 50. d4 {[%emt 0:00:01]} Rxe3 {[%emt 0:00:01]} 51. fxe3 {[%emt 0:00:00]} Rg2+ {[%emt 0:00:02]} 52. Kh1 {[%emt 0:00:01]} Be7 {[%emt 0:00:02]} 53. Ng1 {[%emt 0:00:05]} (53. d5 $142) 53... Bg5 $2 {[%emt 0:00:02]} (53... Rxg3 $18 54. Rf3 Rg6 55. Nxh3 f6 56. exf6 Bxf6) 54. Nxh3 {[%emt 0:00:00]} Rxg3 {[%emt 0:00:01]} 55. Nxg5 {[%emt 0:00:01] Weighted Error Value: White=0.28 (precise) /Black=0.51} 1-0

[Event "Super United Croatia GCT Blitz 2022"]
[Site "Zagreb"]
[Date "2022.07.23"]
[Round "4"]
[White "Saric, Ivan"]
[Black "Topalov, Veselin"]
[Result "1-0"]
[ECO "B81"]
[WhiteElo "2680"]
[BlackElo "2728"]
[Annotator "TA"]
[PlyCount "63"]
[EventDate "2022.07.20"]
[EventType "tourn"]
[EventCountry "CRO"]
[SourceTitle "playchess.com"]
[Source "ChessBase"]
[SourceQuality "1"]
[TimeControl "300+2"]

{[%evp 15,63,34,60,60,58,43,60,64,66,68,26,31,75,67,114,52,66,46,65,62,79,77,82,69,80,68,75,75,85,66,164,166,147,154,165,29,277,284,263,279,342,330,409,405,389,392,5754,5543,2150,1904]} 1. e4 {[%emt 0:00:01]} c5 {[%emt 0:00:01]} 2. Nf3 {[%emt 0:00:00]} d6 {[%emt 0:00:01]} 3. d4 {[%emt 0:00:01]} cxd4 {[%emt 0:00:01]} 4. Nxd4 {[%emt 0:00:01]} Nf6 {[%emt 0:00:02]} 5. Nc3 {[%emt 0:00:01]} a6 {[%emt 0:00:01]} 6. h3 {[%emt 0:00:05]} e6 {[%emt 0:00:07]} 7. g4 {[%emt 0:00:03]} h6 {[%emt 0:00:02]} 8. Bg2 {[%emt 0:00:05]} Nc6 {[%emt 0:00:32]} 9. Nxc6 {[%emt 0:00:07] B81: Sicilian Scheveningen: Keres Attack.} bxc6 {[%emt 0:00:01]} 10. e5 $1 {[%emt 0:00:20]} dxe5 {[%emt 0:00:02]} 11. Bxc6+ {[%emt 0:00:01] White is slightly better.} Bd7 {[%emt 0:00:00]} 12. Bxa8 {[%emt 0:00:01] White is more active.} Qxa8 {[%emt 0:00:01]} 13. Rg1 {[%emt 0:00:03][%cal Bh1g1,Bg1g3,Bg3e3][%mdl 32] [#]} Qb7 $146 {[%emt 0:00:10]} ({Predecessor:} 13... h5 14. g5 Nd5 15. Bd2 Ne7 16. Qe2 Ng6 17. O-O-O Bc6 18. Qc4 Be7 19. Be3 O-O {½-½ (55) Srijit,P (2399)-Savchenko,B (2524) Chennai 2022}) 14. Qe2 {[%emt 0:00:12]} Bd6 {[%emt 0:00:02] [#]} (14... Bc6 $14) 15. b3 {[%emt 0:00:42]} (15. Qd3 $1 $16 {[%cal Rd3d6]} Nd5 16. Bd2) 15... Bc6 $1 $14 {[%emt 0:00:15]} 16. Rg3 {[%emt 0:00:17] Against Bf3} e4 {[%emt 0:00:04]} 17. Re3 {[%emt 0:00:15]} O-O {[%emt 0:00:13]} 18. Bb2 {[%emt 0:00:03]} Bf4 {[%emt 0:00:06] [#]} 19. O-O-O $1 {[%emt 0:00:02][%cal Oh3h4]} a5 {[%emt 0:00:12] [#]} 20. Kb1 $1 {[%emt 0:00:07][%cal Oa2a4]} a4 $1 {[%emt 0:00:01] [#]} 21. h4 $1 {[%emt 0:00:07]} axb3 {[%emt 0:00:02]} (21... Bxe3 22. fxe3) 22. axb3 {[%emt 0:00:02][%cal Og4g5]} Ra8 {[%emt 0:00:06]} ({Black should play} 22... Bxe3 $14 23. fxe3 Nh7) 23. g5 $1 $18 {[%emt 0:00:06]} hxg5 {[%emt 0:00:14]} 24. hxg5 {[%emt 0:00:00]} Bxg5 {[%emt 0:00:01]} 25. Rg1 {[%emt 0:00:02]} Ra5 {[%emt 0:00:23] Black cannot hold the game after this.} (25... Bxe3 $11 {and Black stays safe.} 26. Qxe3 Ne8) 26. Reg3 {[%emt 0:00:03]} Bh6 {[%emt 0:00:01]} 27. Nd1 {[%emt 0:00:49]} ({Weaker is} 27. Bc1 Qa8 28. Bb2 g6 $16) 27... Nh5 {[%emt 0:00:50]} 28. Rh3 {[%emt 0:00:32]} Qb5 {[%emt 0:00:40]} 29. Qg4 {[%emt 0:00:21] Threatens to win with Bc3.} Qf5 {[%emt 0:00:14]} 30. Qh4 {[%emt 0:00:24] Ne3 is the strong threat. The board is on fire.} Qf4 {[%emt 0:00:53]} (30... f6 31. Bxf6 Qf4) 31. Qd8+ {[%emt 0:00:01]} Kh7 {[%emt 0:00:02]} 32. Qxa5 {[%emt 0:00:03] Weighted Error Value: White=0.14 (very precise) /Black=0.37} 1-0

[Event "Super United Croatia GCT Blitz 2022"]
[Site "Zagreb"]
[Date "2022.07.23"]
[Round "5"]
[White "Carlsen, Magnus"]
[Black "Vachier-Lagrave, Maxime"]
[Result "1-0"]
[ECO "B30"]
[WhiteElo "2864"]
[BlackElo "2760"]
[Annotator "TA"]
[PlyCount "127"]
[EventDate "2022.07.20"]
[EventType "tourn"]
[EventCountry "CRO"]
[SourceTitle "playchess.com"]
[Source "ChessBase"]
[SourceQuality "1"]
[TimeControl "300+2"]

{[%evp 21,127,11,11,11,12,7,29,6,15,14,16,30,40,51,77,16,26,29,29,26,33,16,17,10,12,13,16,0,52,39,54,59,54,54,44,14,23,28,15,19,28,0,0,0,6,8,18,20,14,17,72,69,76,76,77,79,113,97,139,68,86,59,63,48,71,28,60,62,87,68,141,100,99,98,101,71,105,108,122,36,35,34,58,8,8,8,8,8,8,8,24,0,8,0,8,8,47,47,68,64,457,442,29970,29967,29965,316,29988,29989]} 1. e4 {[%emt 0:00:01]} c5 {[%emt 0:00:01]} 2. Nc3 {[%emt 0:00:01]} Nc6 {[%emt 0:00:02]} 3. Bb5 {[%emt 0:00:03]} Nd4 {[%emt 0:00:02]} 4. Nf3 {[%emt 0:00:01]} e6 {[%emt 0:00:05]} 5. O-O {[%emt 0:00:03]} a6 {[%emt 0:00:06]} 6. Bd3 {[%emt 0:00:02]} Ne7 {[%emt 0:00:06][%cal Bg8e7,Be7c6,Bc6e5,Be5c4][%mdl 32]} 7. Nxd4 {[%emt 0:00:09]} cxd4 {[%emt 0:00:01]} 8. Ne2 {[%emt 0:00:01]} Nc6 {[%emt 0:00:01]} 9. c3 {[%emt 0:00:02]} Bc5 {[%emt 0:00:11]} 10. b4 {[%emt 0:00:09][%cal Bb2b4,Bb4b5][%mdl 32]} Ba7 {[%emt 0:00:02]} 11. a4 {[%emt 0:00:13]} O-O {[%emt 0:00:23]} 12. b5 {[%emt 0:00:28] B30: Sicilian: 2...Nc6 3 Bb5, lines without ...g6.} Ne5 {[%emt 0:00:01]} 13. Bb1 {[%emt 0:00:02]} dxc3 {[%emt 0:00:49]} 14. d4 {[%emt 0:00:05] [#] White has an edge.} Nc4 $146 {[%emt 0:00:01]} ({Predecessor:} 14... Ng6 15. Nxc3 d6 16. Ba3 Re8 17. Qd2 e5 18. dxe5 Nxe5 19. Ba2 Be6 20. Bxe6 Rxe6 {0-1 (33) Mikaelyan,A (2483)-Hnydiuk,A (2411) Chess.com INT 2020}) 15. Nxc3 {[%emt 0:00:45] Strongly threatening Qd3.} d5 {[%emt 0:00:01]} 16. Qd3 {[%emt 0:00:10] aiming for exd5.} g6 {[%emt 0:00:27]} 17. Ba2 {[%emt 0:00:17]} Re8 {[%emt 0:00:10]} 18. Rd1 {[%emt 0:00:10]} (18. Bxc4 dxc4 19. Qxc4 Bxd4 $11) (18. Bf4 $16) 18... axb5 $11 {[%emt 0:00:17]} 19. Nxb5 {[%emt 0:00:17]} Bb8 {[%emt 0:00:08]} 20. Bxc4 {[%emt 0:00:23]} dxc4 {[%emt 0:00:01]} 21. Qxc4 {[%emt 0:00:01]} Qh4 $1 {[%emt 0:00:03][%csl LRe4,LRh2]} 22. Nc7 {[%emt 0:00:29] Black must now prevent g3.} Bxc7 {[%emt 0:00:24]} (22... Qh5 23. Bf4 Bxc7 24. Qxc7 $16) 23. Qxc7 {[%emt 0:00:02] White wants to play Bb2.} Qxe4 {[%emt 0:00:04]} 24. Bg5 {[%emt 0:00:03]} b5 {[%emt 0:00:12]} (24... Qd5 $11 25. Bf6 Bd7) 25. a5 $14 {[%emt 0:00:47]} ({Much worse is} 25. axb5 Rxa1 26. Rxa1 Bb7 $11) 25... Bb7 {[%emt 0:00:03][%csl Gb7][%cal Re4g2]} 26. f3 {[%emt 0:00:01]} Qd5 {[%emt 0:00:15]} 27. Bf6 {[%emt 0:00:02]} Rec8 {[%emt 0:00:31]} 28. Qf4 {[%emt 0:00:06] White wants to mate with Qh6.} (28. Qe7 $5 {[%cal Rf6e5]} Ba6 29. Rdc1 $14) 28... Qf5 $1 {[%emt 0:00:01]} 29. Qxf5 {[%emt 0:00:10]} (29. Qe5 {is more complex.} Rc2 30. Rf1 Ba6 31. Be7) 29... gxf5 {[%emt 0:00:01]} 30. Rdb1 {[%emt 0:00:02]} Ba6 {[%emt 0:00:05]} 31. d5 {[%emt 0:00:01]} exd5 {[%emt 0:00:02]} 32. Rd1 {[%emt 0:00:01]} Bb7 {[%emt 0:00:10]} 33. Re1 {[%emt 0:00:11]} Rc6 {[%emt 0:00:04]} 34. Bb2 {[%emt 0:00:21]} Re6 {[%emt 0:00:11]} 35. Rec1 {[%emt 0:00:03]} b4 {[%emt 0:00:07]} (35... Ba6 $11) 36. Ra4 $16 {[%emt 0:00:02]} Ba6 {[%emt 0:00:08]} 37. Rxb4 {[%emt 0:00:02]} Bc4 {[%emt 0:00:01]} 38. Ra1 {[%emt 0:00:09]} h6 {[%emt 0:00:04]} 39. Bd4 {[%emt 0:00:02]} Kh7 {[%emt 0:00:04]} 40. Rb6 {[%emt 0:00:03]} (40. Rb7 $16) 40... Kg6 $14 {[%emt 0:00:14]} 41. f4 {[%emt 0:00:05]} Ra6 {[%emt 0:00:10]} 42. Kf2 {[%emt 0:00:03]} Kh7 {[%emt 0:00:03]} 43. Rxa6 {[%emt 0:00:06]} Bxa6 $16 {[%emt 0:00:04][%mdl 4096] Endgame KRB-KRB} 44. Re1 {[%emt 0:00:02]} Rc6 {[%emt 0:00:08]} 45. Re5 {[%emt 0:00:03][%csl LRd5,LRf5] White is more active.} Bd3 {[%emt 0:00:04]} (45... Rc2+ $14 46. Kg3 Bd3) 46. Rxd5 {[%emt 0:00:02]} Rc2+ {[%emt 0:00:01]} 47. Ke3 {[%emt 0:00:01]} Be4 {[%emt 0:00:02]} 48. Rd7 {[%emt 0:00:01]} Kg6 {[%emt 0:00:03]} 49. Rd6+ {[%emt 0:00:02]} Kh5 {[%emt 0:00:03]} 50. g4+ {[%emt 0:00:05]} ({White should try} 50. Bg7 $1 $16 Rc6 51. Rxc6 Bxc6 52. g3) 50... Kxg4 $14 {[%emt 0:00:03]} 51. Rxh6 {[%emt 0:00:01] Bf6 would kill now.} Ra2 $1 {[%emt 0:00:01]} 52. a6 {[%emt 0:00:02]} (52. Bb6 $14) 52... Ra3+ $11 {[%emt 0:00:01]} 53. Kf2 {[%emt 0:00:03]} Kxf4 {[%emt 0:00:07]} 54. a7 {[%emt 0:00:01]} Ra2+ {[%emt 0:00:01]} 55. Ke1 {[%emt 0:00:01]} Kg4 {[%emt 0:00:05]} 56. Rh8 {[%emt 0:00:04]} f4 {[%emt 0:00:03]} 57. h4 {[%emt 0:00:01]} f3 {[%emt 0:00:04]} 58. h5 {[%emt 0:00:02] And now h6 would win.} Re2+ {[%emt 0:00:02]} 59. Kd1 $1 {[%emt 0:00:01]} Ra2 {[%emt 0:00:01]} 60. h6 $1 {[%emt 0:00:03] Hoping for Re8.} Ra4 $2 {[%emt 0:00:10][%mdl 8192] [#] A mistake that costs the game.} (60... f2 $2 {[#]} 61. Bxf2 $1 {[%mdl 512]} Kf5 62. Rg8 $1 Ra1+ 63. Ke2 $18) ({Better is} 60... Kh5 $1 $14) 61. h7 $1 {[%emt 0:00:00]} Rxd4+ {[%emt 0:00:02]} (61... Bxh7 $18 62. a8=Q (62. Rxh7 Rxd4+ 63. Kc2 Ra4 $11) 62... Rxa8 63. Rxa8 f2 64. Bxf2 Bg6) (61... Kf4 62. Bf2) 62. Ke1 {[%emt 0:00:01]} Kf4 {[%emt 0:00:02]} 63. Re8 $2 {[%emt 0:00:05]} (63. a8=Q {mates} f2+ 64. Kxf2 Bxa8 65. Rxa8 Rd2+ 66. Ke1 Rb2 67. h8=Q Rb3 68. Ra4+ Kf5 69. Qh5+ Kf6 70. Ra6+ Ke7 71. Qe5+ Kd8 72. Qd6+ Kc8 73. Rc6+ Kb7 74. Qc7+ Ka8 75. Ra6#) 63... Ra4 $2 {[%emt 0:00:04]} (63... Bc2 $18 64. h8=Q Rd1+ 65. Kf2 Rd2+ 66. Kg1 Rd1+ 67. Kf2 Rd2+ 68. Re2 Rxe2+ 69. Kf1 Be4 70. Qf6+ Kg3 71. Qg7+ (71. Qxf7 Rf2+ 72. Kg1 Rg2+ 73. Kf1 Rf2+ 74. Kg1 Rg2+ 75. Kf1 Rf2+ $11) 71... Kh3 72. Qxf7 Kg4 73. Qe6+ Kg5 74. Qe5+ Kg4) 64. h8=Q {[%emt 0:00:03] Weighted Error Value: White=0.22 (precise) /Black=0.43} 1-0